fUST/lending_fUST_20240719
["ID","MTS","AMOUNT","RATE_DAILY","PERIOD"]
[332616324,1721353849241,-514.18281179,0.00019178,2]
[332616325,1721353849251,-500.0,0.00019178,2]
[332616326,1721353849262,-2618.51,0.00019178,2]
[332616327,1721353849272,-500.0,0.00019178,2]
[332616328,1721353849282,-1000.0,0.00019178,2]
[332616329,1721353849293,-1000.0,0.00019178,2]
[332616330,1721353849303,-500.0,0.00019178,2]
[332616331,1721353849313,-1000.0,0.00019178,2]
[332616332,1721353849323,-1248.69,0.00019178,2]
[332616333,1721353849333,-1000.0,0.00019178,2]
[332616334,1721353849343,-500.0,0.00019178,2]
[332616335,1721353849354,-1000.0,0.00019178,2]
[332616336,1721353849364,-1000.0,0.00019178,2]
[332616337,1721353849373,-1000.0,0.00019178,2]
[332616338,1721353849385,-501.84689361,0.00019178,2]
[332616339,1721353849395,-1000.0,0.00019178,2]
[332616340,1721353849406,-500.0,0.00019178,2]
[332616341,1721353849415,-1000.0,0.00019178,2]
[332616342,1721353849425,-1000.0,0.00019178,2]
[332616343,1721353849435,-500.0,0.00019178,2]
[332616344,1721353849446,-1000.0,0.00019178,2]
[332616345,1721353849456,-1000.0,0.00019178,2]
[332616346,1721353849470,-1000.0,0.00019178,2]
[332616347,1721353849480,-500.0,0.00019178,2]
[332616348,1721353849491,-1000.0,0.00019178,2]
[332616349,1721353849503,-1039.73,0.00019178,2]
[332616350,1721353849514,-151.0,0.00019178,2]
[332616351,1721353849524,-1000.0,0.00019178,2]
[332616352,1721353849535,-1201.0,0.00019178,2]
[332616353,1721353849545,-152.862577,0.00019178,2]
[332616354,1721353849555,-1000.0,0.00019178,2]
[332616355,1721353849565,-1000.0,0.00019178,2]
[332616356,1721353849575,-1000.0,0.00019178,2]
[332616357,1721353849585,-1000.0,0.00019178,2]
[332616358,1721353849594,-1000.0,0.00019178,2]
[332616359,1721353849603,-1000.0,0.00019178,2]
[332616360,1721353849614,-1000.0,0.00019178,2]
[332616361,1721353849624,-1000.0,0.00019178,2]
[332616362,1721353849635,-500.0,0.00019178,2]
[332616363,1721353849644,-514.69,0.00019178,2]
[332616364,1721353849653,-1000.0,0.00019178,2]
[332616365,1721353849664,-1000.0,0.00019178,2]
[332616366,1721353849673,-1000.0,0.00019178,2]
[332616367,1721353849684,-594.5,0.00019178,2]
[332616368,1721353849694,-1000.0,0.00019178,2]
[332616369,1721353849704,-500.0,0.00019178,2]
[332616370,1721353849719,-1000.0,0.00019178,2]
[332616371,1721353849729,-1000.0,0.00019178,2]
[332616372,1721353849739,-151.0,0.00019178,2]
[332616373,1721353849748,-151.0,0.00019178,2]
[332616374,1721353849758,-1000.0,0.00019178,2]
[332616375,1721353849767,-1000.0,0.00019178,2]
[332616376,1721353849776,-229.201342,0.00019178,2]
[332616377,1721353849786,-1000.0,0.00019178,2]
[332616378,1721353849795,-1000.0,0.00019178,2]
[332616379,1721353849805,-200.0,0.00019178,2]
[332616380,1721353849815,-1000.0,0.00019178,2]
[332616381,1721353849824,-1000.0,0.00019178,2]
[332616382,1721353849834,-1000.0,0.00019178,2]
[332616383,1721353849845,-3030.97,0.00019178,2]
[332616384,1721353849856,-1000.0,0.00019178,2]
[332616385,1721353849867,-500.0,0.00019178,2]
[332616386,1721353849876,-1000.0,0.00019178,2]
[332616387,1721353849887,-1000.0,0.00019178,2]
[332616388,1721353849899,-1000.0,0.00019178,2]
[332616389,1721353849908,-500.0,0.00019178,2]
[332616390,1721353849918,-1114.860525,0.00019178,2]
[332616391,1721353849927,-500.0,0.00019178,2]
[332616392,1721353849936,-1288.84,0.00019178,2]
[332616393,1721353849946,-500.0,0.00019178,2]
[332616394,1721353849957,-2798.61,0.00019178,2]
[332616395,1721353849970,-4515.72,0.00019178,2]
[332616396,1721353849980,-2032.29,0.00019178,2]
[332616397,1721353849990,-1360.96,0.00019178,2]
[332616398,1721353849999,-500.0,0.00019178,2]
[332616399,1721353850012,-500.0,0.00019178,2]
[332616400,1721353850021,-500.0,0.00019178,2]
[332616401,1721353850030,-500.0,0.00019178,2]
[332616402,1721353850041,-500.0,0.00019178,2]
[332616403,1721353850050,-500.0,0.00019178,2]
[332616404,1721353850063,-2539.79,0.00019178,2]
[332616405,1721353850073,-2539.79,0.00019178,2]
[332616406,1721353850083,-2539.79,0.00019178,2]
[332616407,1721353850095,-2539.79,0.00019178,2]
[332616408,1721353850104,-542.33511345,0.00019178,2]
[332616409,1721353850115,-500.0,0.00019178,2]
[332616410,1721353850124,-1703.27,0.00019178,2]
[332616411,1721353850134,-4160.3,0.00019178,2]
[332616412,1721353850147,-2539.79,0.00019178,2]
[332616413,1721353850157,-2539.79,0.00019178,2]
[332616414,1721353850167,-500.0,0.00019178,2]
[332616415,1721353850178,-500.0,0.00019178,2]
[332616416,1721353850187,-500.0,0.00019178,2]
[332616417,1721353850197,-2539.79,0.00019178,2]
[332616418,1721353850206,-2539.79,0.00019178,2]
[332616419,1721353850218,-973.85,0.00019178,2]
[332616420,1721353850228,-2539.79,0.00019178,2]
[332616421,1721353850238,-2539.79,0.00019178,2]
[332616422,1721353850248,-2539.79,0.00019178,2]
[332616423,1721353850258,-2539.79,0.00019178,2]
[332616424,1721353850267,-2539.79,0.00019178,2]
[332616425,1721353850277,-2539.79,0.00019178,2]
[332616426,1721353850287,-2539.79,0.00019178,2]
[332616427,1721353850296,-500.0,0.00019178,2]
[332616428,1721353850307,-2539.79,0.00019178,2]
[332616429,1721353850316,-500.0,0.00019178,2]
[332616430,1721353850326,-2539.79,0.00019178,2]
[332616431,1721353850336,-2539.79,0.00019178,2]
[332616432,1721353850345,-2539.79,0.00019178,2]
[332616433,1721353850354,-2539.79,0.00019178,2]
[332616434,1721353850364,-2539.79,0.00019178,2]
[332616435,1721353850374,-2539.79,0.00019178,2]
[332616436,1721353850384,-2539.79,0.00019178,2]
[332616437,1721353850394,-2539.88182993,0.00019178,2]
[332616438,1721353850403,-1477.8,0.00019178,2]
[332616439,1721353850412,-501.77109305,0.00019178,2]
[332616440,1721353850423,-151.0,0.00019178,2]
[332616441,1721353850432,-151.0,0.00019178,2]
[332616442,1721353850442,-512.77869725,0.00019178,2]
[332616443,1721353850451,-160.041713,0.00019178,2]
[332616444,1721353850465,-500.0,0.00019178,2]
[332616445,1721353850475,-500.0,0.00019178,2]
[332616446,1721353850487,-500.0,0.00019178,2]
[332616447,1721353850498,-500.0,0.00019178,2]
[332616448,1721353850507,-500.0,0.00019178,2]
[332616449,1721353850516,-258.72369807,0.00019178,2]
[332616450,1721353850526,-1764.48,0.00019178,2]
[332616451,1721353850536,-500.0,0.00019178,2]
[332616452,1721353850547,-500.0,0.00019178,2]
[332616453,1721353850557,-500.0,0.00019178,2]
[332616454,1721353850567,-486.19733176,0.00019178,2]
[332616455,1721353850578,-500.0,0.00019178,2]
[332616456,1721353850589,-1314.0,0.00019178,2]
[332616457,1721353850600,-500.0,0.00019178,2]
[332616458,1721353850610,-500.0,0.00019178,2]
[332616459,1721353850620,-6479.24,0.00019178,2]
[332616460,1721353850630,-6479.24,0.00019178,2]
[332616461,1721353850640,-6479.24,0.00019178,2]
[332616462,1721353850651,-500.0,0.00019178,2]
[332616463,1721353850661,-6479.24,0.00019178,2]
[332616464,1721353850671,-2303.1,0.00019178,2]
[332616465,1721353850680,-500.0,0.00019178,2]
[332616466,1721353850690,-151.0,0.00019178,2]
[332616467,1721353850700,-151.0,0.00019178,2]
[332616468,1721353850709,-15821.58,0.00019178,2]
[332616469,1721353850721,-500.0,0.00019178,2]
[332616470,1721353850730,-500.0,0.00019178,2]
[332616471,1721353850740,-558.5,0.00019178,2]
[332616472,1721353850749,-274.283541,0.00019178,2]
[332616473,1721353850758,-500.0,0.00019178,2]
[332616474,1721353850767,-6479.24,0.00019178,2]
[332616475,1721353850776,-6479.24,0.00019178,2]
[332616476,1721353850786,-6479.24,0.00019178,2]
[332616477,1721353850795,-6479.24,0.00019178,2]
[332616478,1721353850804,-151.0,0.00019178,2]
[332616479,1721353850814,-6479.24,0.00019178,2]
[332616480,1721353850826,-151.0,0.00019178,2]
[332616481,1721353850837,-6479.24,0.00019178,2]
[332616482,1721353850848,-500.0,0.00019178,2]
[332616483,1721353850859,-151.0,0.00019178,2]
[332616484,1721353850869,-6479.24,0.00019178,2]
[332616485,1721353850880,-6479.24,0.00019178,2]
[332616486,1721353850891,-6479.24,0.00019178,2]
[332616487,1721353850902,-6479.24,0.00019178,2]
[332616488,1721353851052,-6479.24,0.00019178,2]
[332616489,1721353851066,-6479.24,0.00019178,2]
[332616490,1721353851075,-12938.53,0.00019178,2]
[332616491,1721353851085,-6479.24,0.00019178,2]
[332616492,1721353851095,-151.0,0.00019178,2]
[332616493,1721353851105,-6479.24,0.00019178,2]
[332616494,1721353851115,-151.0,0.00019178,2]
[332616495,1721353851124,-6479.24,0.00019178,2]
[332616496,1721353851134,-151.0,0.00019178,2]
[332616497,1721353851146,-2181.64,0.00019178,2]
[332616498,1721353851156,-6479.24,0.00019178,2]
[332616499,1721353851167,-151.0,0.00019178,2]
[332616500,1721353851177,-6479.24,0.00019178,2]
[332616501,1721353851187,-151.0,0.00019178,2]
[332616502,1721353851198,-500.0,0.00019178,2]
[332616503,1721353851209,-6479.24,0.00019178,2]
[332616504,1721353851221,-500.0,0.00019178,2]
[332616505,1721353851231,-6479.24,0.00019178,2]
[332616506,1721353851242,-6479.32715834,0.00019178,2]
[332616507,1721353851252,-1004.47,0.00019178,2]
[332616508,1721353851261,-500.0,0.00019178,2]
[332616509,1721353851271,-500.0,0.00019178,2]
[332616510,1721353851280,-500.0,0.00019178,2]
[332616511,1721353851290,-1236.29,0.00019178,2]
[332616512,1721353851300,-4426.86,0.00019178,2]
[332616513,1721353851310,-503.07177445,0.00019178,2]
[332616514,1721353851320,-40740.25,0.00019178,2]
[332616515,1721353851330,-513.69,0.00019178,2]
[332616516,1721353851339,-500.0,0.00019178,2]
[332616517,1721353851350,-2684.51,0.00019178,2]
[332616518,1721353851359,-501.25316598,0.00019178,2]
[332616519,1721353851369,-846.78,0.00019178,2]
[332616520,1721353851378,-503.3248488,0.00019178,2]
[332616521,1721353851387,-500.0,0.00019178,2]
[332616522,1721353851397,-504.92923981,0.00019178,2]
[332616523,1721353851407,-500.0,0.00019178,2]
[332616524,1721353851416,-2694.69,0.00019178,2]
[332616525,1721353851425,-500.0,0.00019178,2]
[332616526,1721353851434,-2140.53,0.00019178,2]
[332616527,1721353851444,-500.0,0.00019178,2]
[332616528,1721353851453,-500.0,0.00019178,2]
[332616529,1721353851462,-500.0,0.00019178,2]
[332616530,1721353851472,-500.0,0.00019178,2]
[332616531,1721353851481,-3365.73,0.00019178,2]
[332616532,1721353851490,-500.0,0.00019178,2]
[332616533,1721353851500,-2278.48,0.00019178,2]
[332616534,1721353851510,-342.00770494,0.00019178,2]
[332616535,1721353851519,-2173.32,0.00019178,2]
[332616536,1721353851529,-154.793048,0.00019178,2]
[332616537,1721353851538,-506.39,0.00019178,2]
[332616538,1721353851548,-2598.13,0.00019178,2]
[332616539,1721353851557,-500.0,0.00019178,2]
[332616540,1721353851566,-685.3,0.00019178,2]
[332616541,1721353851575,-500.0,0.00019178,2]
[332616542,1721353851586,-500.0,0.00019178,2]
[332616543,1721353851595,-1363.35,0.00019178,2]
[332616544,1721353851606,-500.0,0.00019178,2]
[332616545,1721353851617,-170.146246,0.00019178,2]
[332616546,1721353851628,-151.0,0.00019178,2]
[332616547,1721353851638,-151.0,0.00019178,2]
[332616548,1721353851648,-151.0,0.00019178,2]
[332616549,1721353851659,-172.463355,0.00019178,2]
[332616550,1721353851668,-602.890388,0.00019178,2]
[332616551,1721353851679,-602.890388,0.00019178,2]
[332616552,1721353851689,-602.890388,0.00019178,2]
[332616553,1721353851699,-602.890388,0.00019178,2]
[332616554,1721353851710,-602.890388,0.00019178,2]
[332616555,1721353851722,-602.890388,0.00019178,2]
[332616556,1721353851733,-602.890388,0.00019178,2]
[332616557,1721353851742,-602.890388,0.00019178,2]
[332616558,1721353851752,-602.890388,0.00019178,2]
[332616559,1721353851762,-602.890388,0.00019178,2]
[332616560,1721353851771,-602.890388,0.00019178,2]
[332616561,1721353851781,-602.890388,0.00019178,2]
[332616562,1721353851790,-602.890388,0.00019178,2]
[332616563,1721353851800,-602.890388,0.00019178,2]
[332616564,1721353851809,-602.890388,0.00019178,2]
[332616565,1721353851819,-602.890388,0.00019178,2]
[332616566,1721353851829,-446.0,0.00019235,2]
[332616567,1721353851839,-683.50569713,0.00019338,2]
[332616568,1721353851848,-155.6203917,0.00019338,2]
[332616569,1721353851858,-466.6,0.000194,2]
[332616570,1721353851867,-877.66,0.00019452,2]
[332616571,1721353851877,-500.0,0.00019452,2]
[332616572,1721353851886,-500.0,0.00019452,2]
[332616573,1721353851896,-270.68935279,0.00019452,2]
[332616574,1721353851905,-2023.24,0.00019452,2]
[332616575,1721353851915,-500.0,0.00019452,2]
[332616576,1721353851925,-500.0,0.00019452,2]
[332616577,1721353851937,-500.0,0.00019452,2]
[332616578,1721353851948,-500.0,0.00019452,2]
[332616579,1721353851959,-1479.81,0.00019452,2]
[332616580,1721353851971,-500.0,0.00019452,2]
[332616581,1721353851982,-500.0,0.00019452,2]
[332616582,1721353851994,-500.0,0.00019452,2]
[332616583,1721353852004,-500.0,0.00019452,2]
[332616584,1721353852015,-500.0,0.00019452,2]
[332616585,1721353852025,-500.0,0.00019452,2]
[332616586,1721353852034,-500.0,0.00019452,2]
[332616587,1721353852044,-500.0,0.00019452,2]
[332616588,1721353852055,-559.1283117,0.00019452,2]
[332616589,1721353852070,-500.0,0.00019452,2]
[332616590,1721353852080,-1091.44,0.00019452,2]
[332616591,1721353852091,-500.0,0.00019452,2]
[332616592,1721353852101,-500.0,0.00019452,2]
[332616593,1721353852111,-500.0,0.00019452,2]
[332616594,1721353852120,-1968.87,0.00019452,2]
[332616595,1721353852131,-1373.39,0.00019452,2]
[332616596,1721353852143,-500.0,0.00019452,2]
[332616597,1721353852153,-500.0,0.00019452,2]
[332616598,1721353852163,-819.65,0.00019452,2]
[332616599,1721353852172,-515.36744585,0.00019452,2]
[332616600,1721353852182,-500.0,0.00019452,2]
[332616601,1721353852192,-500.0,0.00019452,2]
[332616602,1721353852202,-500.0,0.00019452,2]
[332616603,1721353852211,-728.15,0.00019452,2]
[332616604,1721353852222,-500.0,0.00019452,2]
[332616605,1721353852231,-500.0,0.00019452,2]
[332616606,1721353852240,-500.0,0.00019452,2]
[332616607,1721353852250,-500.0,0.00019452,2]
[332616608,1721353852259,-500.0,0.00019452,2]
[332616609,1721353852269,-500.0,0.00019452,2]
[332616610,1721353852278,-500.0,0.00019452,2]
[332616611,1721353852288,-549.38,0.00019452,2]
[332616612,1721353852297,-500.0,0.00019452,2]
[332616613,1721353852307,-501.95410333,0.00019452,2]
[332616614,1721353852318,-583.61,0.00019452,2]
[332616615,1721353852327,-1246.43,0.00019452,2]
[332616616,1721353852336,-500.0,0.00019452,2]
[332616617,1721353852346,-500.0,0.00019452,2]
[332616618,1721353852356,-500.0,0.00019452,2]
[332616619,1721353852365,-500.0,0.00019452,2]
[332616620,1721353852375,-2390.56,0.00019452,2]
[332616621,1721353852385,-500.0,0.00019452,2]
[332616622,1721353852395,-500.0,0.00019452,2]
[332616623,1721353852404,-500.0,0.00019452,2]
[332616624,1721353852413,-500.0,0.00019452,2]
[332616625,1721353852423,-500.0,0.00019452,2]
[332616626,1721353852432,-500.0,0.00019452,2]
[332616627,1721353852442,-500.0,0.00019452,2]
[332616628,1721353852452,-500.79116336,0.00019452,2]
[332616629,1721353852461,-500.0,0.00019452,2]
[332616630,1721353852471,-544.31,0.00019452,2]
[332616631,1721353852481,-342.62262878,0.00019452,2]
[332616632,1721353852490,-500.0,0.00019452,2]
[332616633,1721353852499,-500.0,0.00019452,2]
[332616634,1721353852509,-500.0,0.00019452,2]
[332616635,1721353852518,-500.0,0.00019452,2]
[332616636,1721353852528,-500.0,0.00019452,2]
[332616637,1721353852538,-500.0,0.00019452,2]
[332616638,1721353852548,-500.0,0.00019452,2]
[332616639,1721353852558,-500.0,0.00019452,2]
[332616640,1721353852567,-500.0,0.00019452,2]
[332616641,1721353852575,-2418.35,0.00019452,2]
[332616642,1721353852585,-516.86,0.00019452,2]
[332616643,1721353852595,-500.0,0.00019452,2]
[332616644,1721353852607,-500.0,0.00019452,2]
[332616645,1721353852618,-540.7741958,0.00019452,2]
[332616646,1721353852628,-500.0,0.00019452,2]
[332616647,1721353852639,-500.0,0.00019452,2]
[332616648,1721353852650,-500.0,0.00019452,2]
[332616649,1721353852659,-500.0,0.00019452,2]
[332616650,1721353852669,-518.99615023,0.00019452,2]
[332616651,1721353852678,-500.0,0.00019452,2]
[332616652,1721353852688,-500.0,0.00019452,2]
[332616653,1721353852697,-500.0,0.00019452,2]
[332616654,1721353852708,-1185.62,0.00019452,2]
[332616655,1721353852719,-500.0,0.00019452,2]
[332616656,1721353852729,-500.0,0.00019452,2]
[332616657,1721353852739,-500.0,0.00019452,2]
[332616658,1721353852749,-500.0,0.00019452,2]
[332616659,1721353852759,-762.95,0.00019452,2]
[332616660,1721353852770,-500.0,0.00019452,2]
[332616661,1721353852781,-768.58,0.00019452,2]
[332616662,1721353852792,-500.0,0.00019452,2]
[332616663,1721353852804,-500.0,0.00019452,2]
[332616664,1721353852814,-3421.72,0.00019452,2]
[332616665,1721353852824,-500.0,0.00019452,2]
[332616666,1721353852835,-500.0,0.00019452,2]
[332616667,1721353852845,-887.09,0.00019452,2]
[332616668,1721353852855,-500.0,0.00019452,2]
[332616669,1721353852865,-520.71577569,0.00019452,2]
[332616670,1721353852874,-500.0,0.00019452,2]
[332616671,1721353852884,-1315.09,0.00019452,2]
[332616672,1721353852895,-500.0,0.00019452,2]
[332616673,1721353852905,-500.0,0.00019452,2]
[332616674,1721353852917,-500.0,0.00019452,2]
[332616675,1721353852927,-500.0,0.00019452,2]
[332616676,1721353852939,-500.0,0.00019452,2]
[332616677,1721353852948,-553.72,0.00019452,2]
[332616678,1721353852960,-659.14,0.00019452,2]
[332616679,1721353852974,-500.0,0.00019452,2]
[332616680,1721353852984,-500.0,0.00019452,2]
[332616681,1721353852994,-500.0,0.00019452,2]
[332616682,1721353853006,-3508.44,0.00019452,2]
[332616683,1721353853017,-661.13,0.00019452,2]
[332616684,1721353853027,-500.0,0.00019452,2]
[332616685,1721353853038,-2612.13,0.00019452,2]
[332616686,1721353853048,-553.35,0.00019452,2]
[332616687,1721353853058,-505.57478299,0.00019452,2]
[332616688,1721353853071,-1525.67,0.00019452,2]
[332616689,1721353853081,-1076.72,0.00019452,2]
[332616690,1721353853091,-500.0,0.00019452,2]
[332616691,1721353853101,-702.1,0.00019452,2]
[332616692,1721353853112,-500.0,0.00019452,2]
[332616693,1721353853121,-151.0,0.00019452,2]
[332616694,1721353853130,-151.0,0.00019452,2]
[332616695,1721353853141,-151.0,0.00019452,2]
[332616696,1721353853152,-503.3068367,0.00019452,2]
[332616697,1721353853163,-658.45,0.00019452,2]
[332616698,1721353853174,-500.0,0.00019452,2]
[332616699,1721353853186,-877.85,0.00019452,2]
[332616700,1721353853196,-500.0,0.00019452,2]
[332616701,1721353853207,-500.0,0.00019452,2]
[332616702,1721353853220,-500.0,0.00019452,2]
[332616703,1721353853230,-500.0,0.00019452,2]
[332616704,1721353853240,-521.81,0.00019452,2]
[332616705,1721353853253,-523.23,0.00019452,2]
[332616706,1721353853262,-1239.55,0.00019452,2]
[332616707,1721353853271,-512.23371382,0.00019452,2]
[332616708,1721353853281,-500.0,0.00019452,2]
[332616709,1721353853290,-524.36105699,0.00019452,2]
[332616710,1721353853299,-500.0,0.00019452,2]
[332616711,1721353853308,-500.0,0.00019452,2]
[332616712,1721353853317,-500.0,0.00019452,2]
[332616713,1721353853326,-500.0,0.00019452,2]
[332616714,1721353853336,-500.0,0.00019452,2]
[332616715,1721353853346,-514.27140692,0.00019452,2]
[332616716,1721353853357,-500.0,0.00019452,2]
[332616717,1721353853367,-2486.62,0.00019452,2]
[332616718,1721353853377,-500.0,0.00019452,2]
[332616719,1721353853389,-1915.18,0.00019452,2]
[332616720,1721353853399,-500.0,0.00019452,2]
[332616721,1721353853411,-965.19,0.00019452,2]
[332616722,1721353853421,-637.98492301,0.00019452,2]
[332616723,1721353853432,-2059.02,0.00019452,2]
[332616724,1721353853442,-500.0,0.00019452,2]
[332616725,1721353853453,-500.0,0.00019452,2]
[332616726,1721353853464,-500.0,0.00019452,2]
[332616727,1721353853474,-500.0,0.00019452,2]
[332616728,1721353853484,-500.0,0.00019452,2]
[332616729,1721353853496,-724.11,0.00019452,2]
[332616730,1721353853508,-500.0,0.00019452,2]
[332616731,1721353853519,-500.0,0.00019452,2]
[332616732,1721353853530,-500.0,0.00019452,2]
[332616733,1721353853542,-500.0,0.00019452,2]
[332616734,1721353853554,-500.0,0.00019452,2]
[332616735,1721353853565,-500.0,0.00019452,2]
[332616736,1721353853575,-4505.76,0.00019452,2]
[332616737,1721353853587,-731.04,0.00019452,2]
[332616738,1721353853599,-500.0,0.00019452,2]
[332616739,1721353853609,-626.69,0.00019452,2]
[332616740,1721353853620,-500.0,0.00019452,2]
[332616741,1721353853630,-500.0,0.00019452,2]
[332616742,1721353853641,-500.0,0.00019452,2]
[332616743,1721353853651,-2154.26,0.00019452,2]
[332616744,1721353853660,-1865.03,0.00019452,2]
[332616745,1721353853671,-500.0,0.00019452,2]
[332616746,1721353853681,-500.0,0.00019452,2]
[332616747,1721353853692,-500.0,0.00019452,2]
[332616748,1721353853703,-500.0,0.00019452,2]
[332616749,1721353853714,-500.0,0.00019452,2]
[332616750,1721353853726,-500.0,0.00019452,2]
[332616751,1721353853738,-500.0,0.00019452,2]
[332616752,1721353853749,-634.41,0.00019452,2]
[332616753,1721353853759,-1846.86,0.00019452,2]
[332616754,1721353853770,-500.0,0.00019452,2]
[332616755,1721353853780,-500.0,0.00019452,2]
[332616756,1721353853793,-1166.18,0.00019452,2]
[332616757,1721353853803,-509.36459824,0.00019452,2]
[332616758,1721353853813,-500.0,0.00019452,2]
[332616759,1721353853824,-500.0,0.00019452,2]
[332616760,1721353853835,-500.0,0.00019452,2]
[332616761,1721353853848,-500.0,0.00019452,2]
[332616762,1721353853859,-810.78,0.00019452,2]
[332616763,1721353853870,-500.0,0.00019452,2]
[332616764,1721353853882,-500.0,0.00019452,2]
[332616765,1721353853893,-159.17277486,0.00019452,2]
[332616766,1721353853903,-631.4,0.00019452,2]
[332616767,1721353853912,-500.0,0.00019452,2]
[332616768,1721353853921,-500.0,0.00019452,2]
[332616769,1721353853931,-500.0,0.00019452,2]
[332616770,1721353853940,-3020.92,0.00019452,2]
[332616771,1721353853950,-500.0,0.00019452,2]
[332616772,1721353853960,-2235.97,0.00019452,2]
[332616773,1721353853970,-502.12800329,0.00019452,2]
[332616774,1721353853979,-500.0,0.00019452,2]
[332616775,1721353853989,-1101.7,0.00019452,2]
[332616776,1721353853998,-500.0,0.00019452,2]
[332616777,1721353854007,-500.0,0.00019452,2]
[332616778,1721353854017,-1693.1,0.00019452,2]
[332616779,1721353854027,-578.0241315,0.00019452,2]
[332616780,1721353854037,-500.0,0.00019452,2]
[332616781,1721353854047,-1222.26,0.00019452,2]
[332616782,1721353854057,-2334.9,0.00019452,2]
[332616783,1721353854069,-554.56585592,0.00019452,2]
[332616784,1721353854079,-500.0,0.00019452,2]
[332616785,1721353854088,-500.0,0.00019452,2]
[332616786,1721353854098,-500.0,0.00019452,2]
[332616787,1721353854108,-500.0,0.00019452,2]
[332616788,1721353854117,-530.4515673,0.00019452,2]
[332616789,1721353854126,-500.0,0.00019452,2]
[332616790,1721353854138,-500.0,0.00019452,2]
[332616791,1721353854148,-1991.26,0.00019452,2]
[332616792,1721353854157,-500.0,0.00019452,2]
[332616793,1721353854312,-914.45,0.00019452,2]
[332616794,1721353854322,-500.0,0.00019452,2]
[332616795,1721353854332,-500.0,0.00019452,2]
[332616796,1721353854342,-529.59102439,0.00019452,2]
[332616797,1721353854351,-873.05,0.00019452,2]
[332616798,1721353854362,-307.74168824,0.00019452,2]
[332616799,1721353854372,-521.55,0.00019452,2]
[332616800,1721353854381,-500.0,0.00019452,2]
[332616801,1721353854390,-1148.32,0.00019452,2]
[332616802,1721353854400,-500.0,0.00019452,2]
[332616803,1721353854409,-500.0,0.00019452,2]
[332616804,1721353854418,-587.02,0.00019452,2]
[332616805,1721353854429,-500.0,0.00019452,2]
[332616806,1721353854439,-500.0,0.00019452,2]
[332616807,1721353854448,-500.0,0.00019452,2]
[332616808,1721353854458,-500.0,0.00019452,2]
[332616809,1721353854470,-1134.34,0.00019452,2]
[332616810,1721353854480,-500.0,0.00019452,2]
[332616811,1721353854490,-500.0,0.00019452,2]
[332616812,1721353854500,-189.70805499,0.00019452,2]
[332616813,1721353854509,-500.0,0.00019452,2]
[332616814,1721353854518,-500.0,0.00019452,2]
[332616815,1721353854527,-502.71465661,0.00019452,2]
[332616816,1721353854538,-500.0,0.00019452,2]
[332616817,1721353854547,-426.669071,0.00019452,2]
[332616818,1721353854557,-1330.09,0.00019452,2]
[332616819,1721353854567,-500.0,0.00019452,2]
[332616820,1721353854577,-1014.02,0.00019452,2]
[332616821,1721353854587,-1161.58,0.00019452,2]
[332616822,1721353854596,-2622.11,0.00019452,2]
[332616823,1721353854606,-500.0,0.00019452,2]